Cogmind - Beta 10.1 --- EXPLORER MODE // 2021.10.28 @ 15:20:20 Player: Ilyas Result: Destroyed by H-55 Commando with Gauss Rifle Performance ------------- Evolutions (1) 500 Regions Visited (5) 1000 Robots Destroyed (33) 165 Value Destroyed (877) 877 Prototype IDs (0) 0 Alien Tech Used (0) 0 Bonus (7) 7 TOTAL SCORE: 2549 Bonus ------- Follower Combat Kills 7 Cogmind --------- Core Integrity 0/400 Matter 300/300 Energy 100/100 System Corruption 1% Temperature Cool (0) Movement Walking (120) Location -8/Mines Parts ------- > --- POWER (2) -------- (None) > --- PROPULSION (2) --- Carbon-fiber Leg > --- UTILITY (3) ------ (None) > --- WEAPON (3) ------- (None) > --- INVENTORY (4) ---- Light Ion Engine Peak State ------------ > --- POWER ------------ Light Ion Engine Reinforced Ion Engine > --- PROPULSION ------- Aluminum Leg Carbon-fiber Leg > --- UTILITY ---------- Terrain Scanner Propulsion Shielding Field Recycling Unit > --- WEAPON ----------- Small Laser Light Assault Rifle Light Assault Rifle > --- INVENTORY -------- Light Ion Engine [Rating: 14] Favorites ----------- Power Light Ion Engine Engine Light Ion Engine Propulsion Wheel Leg Carbon-fiber Leg Wheel Wheel Utility Propulsion Shielding Device Field Recycling Unit Processor Signal Interpreter Protection Propulsion Shielding Weapon Light Assault Rifle Energy Gun Small Laser Ballistic Gun Light Assault Rifle Ballistic Cannon Improved Light Cannon Special Weapon Mining Laser Build | -11 -10 -9 -9 -9 -8 ------- Run | Scr Mat Mat Min Exi Min Slots Evolved 3 | . 1 2 . . . Power 1 | . . 1 . . . Propulsion . | . . . . . . Utility 1 | . . 1 . . . Weapon 1 | . 1 . . . . Parts Attached 42 | 14 3 5 4 4 12 Power 8 | 1 1 2 1 . 3 Engine 8 | 1 1 2 1 . 3 Core . | . . . . . . Reactor . | . . . . . . Propulsion 11 | 8 . . . . 3 Treads . | . . . . . . Leg 7 | 4 . . . . 3 Wheel 4 | 4 . . . . . Hover . | . . . . . . Flight . | . . . . . . Utility 12 | 3 . 2 . 3 4 Device 4 | . . . . 1 3 Storage . | . . . . . . Processor 4 | 1 . 2 . . 1 Hackware . | . . . . . . Protection 4 | 2 . . . 2 . Artifact . | . . . . . . Weapon 11 | 2 2 1 3 1 2 Energy Gun 3 | 1 1 . . . 1 Energy Cannon . | . . . . . . Ballistic Gun 3 | 1 1 . . . 1 Ballistic Cannon 3 | . . 1 1 1 . Launcher . | . . . . . . Special Weapon 2 | . . . 2 . . Impact Weapon . | . . . . . . Slashing Weapon . | . . . . . . Piercing Weapon . | . . . . . . Special Melee Weapon . | . . . . . . Unidentified Prototypes . | . . . . . . Parts Lost 14 | . . . 2 . 12 Power 3 | . . . 1 . 2 Propulsion 3 | . . . . . 3 Utility 3 | . . . . . 3 Weapon 5 | . . . 1 . 4 Highest Loss Streak 4 | . . . 2 . 4 Average Slot Usage (%) 85 | . 89 87 97 99 75 Engine 15 | . 12 11 18 20 16 Leg 5 | . . . . . 11 Wheel 12 | . 25 20 20 20 1 Device 5 | . . . . 5 11 Processor 8 | . . 11 20 14 5 Protection 12 | . 25 15 10 10 7 Energy Gun 5 | . 11 2 . . 6 Ballistic Gun 16 | . 14 20 20 20 14 Ballistic Cannon 3 | . . 7 5 10 . Naked Turns 1 | . . . . . 1 Heaviest Build 26 | 11 11 14 16 24 26 Greatest Support 25 | 20 20 20 20 20 25 Greatest Overweight (x) 3 | . . . . 1 3 Average Overweight (x) . | . . . . . . Largest Inventory Capacity 4 | 4 4 4 4 4 4 Average Capacity 4 | 4 4 4 4 4 4 Most Carried 4 | 4 4 3 4 2 4 Average Carried 2 | 2 2 1 2 1 1 Final Capacity 4 | 4 4 4 4 4 4 Final Carried 3 | 3 2 2 2 1 1 Class Distribution -------------------- 39% | Hacker-Tank 31% | Hacker-Mutant 14% | Scavenger-Skirmisher 11% | Scavenger-Tank 3% | Scavenger-Mutant Dominant Class ---------------- Hacker-Mutant | -10/Materials Hacker-Tank | -9/Materials Hacker-Tank | -9/Mines Hacker-Tank | -9/Exiles Scavenger-Skirmisher | -8/Mines Resources | -11 -10 -9 -9 -9 -8 ----------- Run | Scr Mat Mat Min Exi Min Matter Collected 1018 | 324 116 162 206 . 210 Remotely . | . . . . . . Salvage Created 1128 | 57 315 337 193 . 226 Parts 76 | 8 17 26 8 . 17 Haulers Intercepted . | . . . . . . Recyclers Shooed . | . . . . . . Parts Field Recycled 9 | . . . . 3 6 Retrieved Matter 52 | . . . . 23 29 Parts Self-Destructed . | . . . . . . Prevented . | . . . . . . Kills | -11 -10 -9 -9 -9 -8 ------- Run | Scr Mat Mat Min Exi Min Combat Hostiles Destroyed 25 | 1 7 7 5 . 5 Guns 22 | 1 7 5 4 . 5 Cannons 3 | . . 2 1 . . Classes Destroyed 9 | 2 2 2 . . 3 Builder 1 | . . . . . 1 Tunneler 2 | 1 . . . . 1 Recycler 1 | . . 1 . . . Watcher 4 | . 2 2 . . . Swarmer 8 | . 2 3 1 . 2 Grunt 13 | 1 5 2 4 . 1 Brawler 1 | . . . . . 1 Sentry 2 | . . 2 . . . Hunter 1 | . . . . . 1 Best Kill Streak 5 | 2 4 5 2 . 3 Combat Bots Only 5 | 1 4 5 2 . 2 Max Kills in Single Turn 2 | 2 1 1 1 . 1 Gunslinging . | . . . . . . Exploded . | . . . . . . Melee . | . . . . . . Uniques/NPCs Destroyed . | . . . . . . Combat | -11 -10 -9 -9 -9 -8 -------- Run | Scr Mat Mat Min Exi Min Damage Taken 1686 | 47 108 80 229 . 1222 Core 434 | 7 19 . 38 . 370 Absorbed by Shields . | . . . . . . Core Remaining (%) 93 | 97 89 . . . . Volleys Fired 113 | 2 20 21 28 . 42 Largest 3 | 2 3 3 3 . 3 Hottest 140 | 60 80 80 140 . 80 Shots Fired 270 | 4 44 63 65 . 94 Gun 236 | 4 44 45 56 . 87 Cannon 30 | . . 18 5 . 7 Launcher . | . . . . . . Special 4 | . . . 4 . . Kinetic 221 | 2 24 60 61 . 74 Thermal 31 | . 4 3 4 . 20 Explosive . | . . . . . . Electromagnetic 18 | 2 16 . . . . Robot Hit Streak 34 | 3 19 18 16 . 34 Robot Miss Streak 2 | . 1 2 2 . 1 Penetration Max . | . . . . . . Secondary Targets 3 | . 1 . 2 . . Max Gunslinging Chain 1 | . 1 . 1 . . Shots Hit Robots 209 | 3 35 45 45 . 81 Core Hits 63 | 2 15 15 10 . 21 Critical Hits 1 | . . . 1 . . Critical Kills . | . . . . . . Critical Parts Destroyed 1 | . . . 1 . . Melee Attacks . | . . . . . . Impact . | . . . . . . Slashing . | . . . . . . Piercing . | . . . . . . Sneak Attacks . | . . . . . . Combat Hostiles . | . . . . . . Follow-up Attacks . | . . . . . . Damage Inflicted 1978 | 51 403 522 485 . 517 Guns 1672 | 51 403 355 383 . 480 Cannons 300 | . . 167 102 . 31 Explosions . | . . . . . . Melee . | . . . . . . Ramming 6 | . . . . . 6 Kinetic 1561 | 24 192 500 485 . 360 Thermal 196 | . 23 22 . . 151 Explosive . | . . . . . . Electromagnetic 215 | 27 188 . . . . Impact . | . . . . . . Slashing . | . . . . . . Piercing . | . . . . . . Highest Corruption 1 | . . 1 1 1 1 Average Corruption 1 | . . 1 1 1 1 Corruption Purged . | . . . . . . Effects 14 | . . 1 4 2 7 Message Errors 6 | . . . 1 2 3 Energy Discharges 1 | . . . 1 . . Data Loss (minor) 1 | . . . 1 . . Targeting Errors 4 | . . 1 1 . 2 Weapon Failures 2 | . . . . . 2 Overload Shots . | . . . . . . Overflow Damage 9 | . . . 9 . . Projectiles 9 | . . . 9 . . Explosions . | . . . . . . Melee . | . . . . . . Knockbacks 4 | . . 3 1 . . Impact . | . . . . . . Kinetic 4 | . . 3 1 . . Secondary . | . . . . . . Self-Inflicted Damage 3 | . . . . . 3 Shots . | . . . . . . Rammed 1 | . . . . . 1 Targets Rammed 1 | . . . . . 1 Kicked . | . . . . . . Crushed . | . . . . . . Highest Temperature 328 | 24 81 84 171 . 328 Average Temperature 75 | 15 26 30 52 . 125 Received Heat Transfer 843 | 42 66 48 165 . 522 Effects 3 | . . . . . 3 Shutdowns 1 | . . . . . 1 Energy Bleed 1 | . . . . . 1 Interference 1 | . . . . . 1 Siege Activations . | . . . . . . Robots Corrupted . | . . . . . . Combat Hostiles . | . . . . . . Parts Fried . | . . . . . . Impact Corruptions . | . . . . . . Robots Melted . | . . . . . . Combat Hostiles . | . . . . . . Parts Melted 1 | . . . . . 1 Heat Transferred 450 | . 50 50 . . 350 Parts Sabotaged . | . . . . . . Parts Stolen . | . . . . . . Parts Stripped . | . . . . . . Power Chain Reactions . | . . . . . . Missiles Intercepted . | . . . . . . Alert | -11 -10 -9 -9 -9 -8 ------- Run | Scr Mat Mat Min Exi Min Peak Influence 254 | 25 254 251 179 . 80 Initial 69 | . 12 6 69 . . Average 71 | . 125 150 112 . 30 Maximum Alert Level 1 | . 1 1 . . . Low Security (%) 89 | 100 62 61 100 . 100 Level 1 10 | . 37 38 . . . Level 2 . | . . . . . . Level 3 . | . . . . . . Level 4 . | . . . . . . Level 5 . | . . . . . . High Security . | . . . . . . Max Security . | . . . . . . Squads Dispatched 1 | . 1 . . . . Investigation 1 | . 1 . . . . Extermination . | . . . . . . Reinforcement . | . . . . . . Assault . | . . . . . . Garrison . | . . . . . . Intercept . | . . . . . . Construction Impeded . | . . . . . . Haulers Reinforced . | . . . . . . Stealth | -11 -10 -9 -9 -9 -8 --------- Run | Scr Mat Mat Min Exi Min Distress Signals 1 | . . 1 . . . Communications Jammed . | . . . . . . Distress Signals . | . . . . . . Times Spotted 39 | 1 11 10 7 . 10 Peak Tracking Total 5 | 1 3 5 2 . 2 Tactical Retreats 3 | . . . 1 . 2 Traps | -11 -10 -9 -9 -9 -8 ------- Run | Scr Mat Mat Min Exi Min Traps Triggered 2 | . 1 1 . . . Indirectly . | . . . . . . Trap Hack Attempts . | . . . . . . Triggered . | . . . . . . Disarmed . | . . . . . . Reprogrammed . | . . . . . . Reused . | . . . . . . Traps Extracted . | . . . . . . Installed . | . . . . . . Triggered . | . . . . . . Machines | -11 -10 -9 -9 -9 -8 ---------- Run | Scr Mat Mat Min Exi Min Machines Disabled 2 | . 2 . . . . Max in Single Turn 1 | . 1 . . . . Machines Sabotaged . | . . . . . . Garrisons Compromised . | . . . . . . Overloaded Fab Kills . | . . . . . . Fab Network Shutdowns . | . . . . . . Hacking | -11 -10 -9 -9 -9 -8 --------- Run | Scr Mat Mat Min Exi Min Machines Accessed 3 | . 2 1 . . . Terminals 3 | . 2 1 . . . Fabricators . | . . . . . . Repair Stations . | . . . . . . Recycling Units . | . . . . . . Scanalyzers . | . . . . . . Garrison Access . | . . . . . . Total Hacks 11 | . 7 4 . . . Successful 6 | . 3 3 . . . Failed 5 | . 4 1 . . . Catastrophic . | . . . . . . Database Lockouts . | . . . . . . Manual 1 | . 1 . . . . Terminals 11 | . 7 4 . . . Fabricators . | . . . . . . Repair Stations . | . . . . . . Recycling Units . | . . . . . . Scanalyzers . | . . . . . . Garrison Access . | . . . . . . Terminal Hacks 6 | . 3 3 . . . Record 5 | . 2 3 . . . Robot Analysis 1 | . 1 . . . . Fabricator Hacks . | . . . . . . Repair Station Hacks . | . . . . . . Recycling Unit Hacks . | . . . . . . Scanalyzer . | . . . . . . Garrison Access Hacks . | . . . . . . Unauthorized Hacks . | . . . . . . Terminals . | . . . . . . Fabricators . | . . . . . . Repair Stations . | . . . . . . Recycling Units . | . . . . . . Scanalyzers . | . . . . . . Garrison Access . | . . . . . . Data Cores Recovered . | . . . . . . Used . | . . . . . . Hacking Detections 3 | . 2 1 . . . Full Trace Events 3 | . 2 1 . . . Feedback Events 1 | . . 1 . . . Corruption 1 | . . 1 . . . Feedback Blocked . | . . . . . . Robot Schematics Acquired . | . . . . . . Robots Built . | . . . . . . Matter . | . . . . . . Time . | . . . . . . Total Robot Build Rating . | . . . . . . Part Schematics Acquired . | . . . . . . Parts Built . | . . . . . . Matter . | . . . . . . Time . | . . . . . . Total Part Build Rating . | . . . . . . Parts Repaired . | . . . . . . Time . | . . . . . . Parts Recycled . | . . . . . . Recycled Matter . | . . . . . . Retrieved Matter . | . . . . . . Retrieved Components . | . . . . . . Parts Scanalyzed . | . . . . . . Part Schematics Acquired . | . . . . . . Parts Damaged . | . . . . . . Bothacking | -11 -10 -9 -9 -9 -8 ------------ Run | Scr Mat Mat Min Exi Min Used RIF Installer . | . . . . . . Robots Hacked . | . . . . . . Non-combat . | . . . . . . Combat . | . . . . . . Robot Hacks Applied . | . . . . . . Relay Couplers Released . | . . . . . . Robots Rewired . | . . . . . . Allies Hacked . | . . . . . . Hacks Repelled . | . . . . . . Allies | -11 -10 -9 -9 -9 -8 -------- Run | Scr Mat Mat Min Exi Min Total Allies 1 | . . . 1 . . Largest Group 1 | . . . 1 . . Highest-Rated Group 31 | . . . 31 . . Highest-Rated Ally 31 | . . . 31 . . Total Orders . | . . . . . . Ally Attacks 9 | . . . 9 . . Total Damage 145 | . . . 145 . . Kills 1 | . . . 1 . . Allies Corrupted . | . . . . . . Allies Melted . | . . . . . . Intel | -11 -10 -9 -9 -9 -8 ------- Run | Scr Mat Mat Min Exi Min Robot Analysis Total 1 | . 1 . . . . Derelict Logs Recovered . | . . . . . . Drone Launches . | . . . . . . Drone Recoveries . | . . . . . . Exploration | -11 -10 -9 -9 -9 -8 ------------- Run | Scr Mat Mat Min Exi Min Turns Passed 2842 | 193 469 241 432 298 1209 Spaces Moved 2224 | 193 468 171 395 330 667 Core 49 | 37 . . . . 12 Treads . | . . . . . . Legs 642 | 38 . . . . 604 Wheels 1533 | 118 468 171 395 330 51 Hover . | . . . . . . Flight . | . . . . . . Fastest Speed 50 | 50 80 80 80 80 90 Average Speed 96 | 82 80 80 80 84 133 Slowest Speed 200 | 120 80 80 80 90 200 Overloaded Moves . | . . . . . . Propulsion Burnouts . | . . . . . . Robots Hopped . | . . . . . . Cave-ins Triggered . | . . . . . . Exploration Rate (%) 42 | 5 55 23 44 50 80 Regions Visited 5 Branch Regions 3 Pre-discovered Areas . | . . . . . . Known Exits Taken 5 | 1 1 1 1 1 . Unknown Exits Taken . | . . . . . . Scrap Searched . | . . . . . . Spaces Dug 4 | . . . 4 . . Terrain Destroyed 6 | . . 2 4 . . Melee . | . . . . . . Projectile 6 | . . 2 4 . . AOE . | . . . . . . Terrain Rammed . | . . . . . . Walls Destroyed . | . . . . . . Machines Disabled . | . . . . . . Actions | -11 -10 -9 -9 -9 -8 --------- Run | Scr Mat Mat Min Exi Min Total 2706 | 223 524 232 451 352 924 Wait 266 | . 24 26 20 12 184 Move 2219 | 192 467 170 394 329 667 Hop . | . . . . . . Pick Up 37 | 11 5 7 3 2 9 Fast Attach . | . . . . . . Attach 36 | 11 3 4 4 4 10 Detach 12 | 3 . . 1 3 5 Swap 6 | 3 . 1 . . 2 Drop 16 | 1 5 3 1 2 4 Fire 113 | 2 20 21 28 . 42 Melee . | . . . . . . Ram . | . . . . . . Kick 1 | . . . . . 1 Crush . | . . . . . . Escape Stasis . | . . . . . . Rewire . | . . . . . . Trap . | . . . . . . Miscellaneous . | . . . . . . Route ------- -11/Scrapyard -10/Materials (discovered 3 exits: *Mat x2 / *Min) -9/Materials (discovered 2 exits: *Min x2) -9/Mines -9/Exiles -8/Mines (discovered 1 exit: *Mat) History --------- Turn | Location | Event 2 | -11/Scrapyard | Met Revision 17 168 | -11/Scrapyard | Identified exit to Materials 168 | -11/Scrapyard | Discovered exit to Materials (range 8) 194 | -11/Scrapyard | Entered Materials 194 | -10/Materials | Evolved 1 slot: Weapon x1 207 | -10/Materials | Identified exit to Mines 207 | -10/Materials | Discovered exit to Mines (range 16) 312 | -10/Materials | Build established: Hacker-Mutant 431 | -10/Materials | Identified exit to Materials 431 | -10/Materials | Discovered exit to Materials (range 16) 538 | -10/Materials | Discovered exit to Materials (range 10) 663 | -10/Materials | Entered another Materials area 663 | -9/Materials | Evolved 2 slots: Power x1, Utility x1 663 | -9/Materials | Identified exit to Mines 663 | -9/Materials | Discovered exit to Mines (range 7) 871 | -9/Materials | Build established: Hacker-Tank 890 | -9/Materials | Discovered exit to Mines (range 14) 904 | -9/Materials | Entered Mines 947 | -9/Mines | Deemed a non-threat by the Exiles lab entrance 948 | -9/Mines | Identified exit to Exiles 948 | -9/Mines | Discovered exit to Exiles (range 5) 1031 | -9/Mines | Received a Mining Laser from a helpful Derelict 1336 | -9/Mines | Entered Exiles 1350 | -9/Exiles | Identified exit to Mines 1350 | -9/Exiles | Discovered exit to Mines (range 17) 1361 | -9/Exiles | Met 8R-AWN 1382 | -9/Exiles | Met EX-HEX 1415 | -9/Exiles | Met EX-DEC 1634 | -9/Exiles | Entered Mines 1816 | -8/Mines | Identified exit to Materials 1816 | -8/Mines | Discovered exit to Materials (range 5) 2031 | -8/Mines | Build established: Scavenger-Tank 2367 | -8/Mines | Build established: Scavenger-Skirmisher 2608 | -8/Mines | Core integrity fell below 50% 2679 | -8/Mines | Core integrity fell below 20% 2725 | -8/Mines | Lost 4 parts (1p1n2u) 2843 | -8/Mines | Destroyed by H-55 Commando with Gauss Rifle Last Messages --------------- 02635_ Laser Drill disabled. 02662_ Slug penetrates Wall. 02665_ Penetrated by Slug. 02665_ Field Recycling Unit destroyed. 02668_ Terrain Scanner destroyed. 02670_ Aluminum Leg destroyed. 02671_ Penetrated by Slug. 02681_ Slug penetrates G-50 Soldier. 02681_ G-50 Soldier destroyed. 02690_ Penetrated by Slug. 02694_ Acquired Carbon-fiber Leg. 02694_ Rnf. Ion Engine destroyed. 02699_ Penetrated by Slug. 02732_ Acquired 10 matter. 02748_ Slug penetrates Wall. 02793_ K-01 Serf cleans the Plasma Injector. 02837_ Slammed into U-05 Engineer. Ramming works as a last resort when unarmed or blocked, but can have serious negative consequences. [Achievement: First Step to Greatness] Map ----- +----------------------------------------------------+ | ????????????????????????????????????????????? | | ????????????????????????????????????????????? | | ????????????????????????????????????????????? | | ????????????????????????????????????????????? | | ????????????????????????????????????????????? | | ????????????????????????????????????????????? | | ????????????????????????????????????????????? | | ????????????????????????????????????????????? | | ????????????????????????????????????????????? | | ??????????????#??????????????????????###????? | | ?????????? #????????????????????## ##???? | | ####### """ ????????????????????## ##??? | | # < """ ???????????????????## #??? | | # #### """ ??????????????????## #??? | | # #??????? #????????????????## #??? | | # #??????????????????????????## ##??? | | # #??????????????????????????# ###???? | | # #??????????????????????????# ##?????? | | #####??????????????????????## ###????? | | ## ##??????????????????????## ##???? | | # ########????????????????# #???? | | # #???????????????## ##???? | | # ####### #??????????????## ##????? | | ##?????# #??##########?## ##?????? | | # #??????# #??# #?# ##??????? | | ## ##????## #### """@ ### #???????? | | ### ###???#?# """ h #???????? | | ######???????###### """ % #???????? | | ##??????????????# u % ##### #???????? | | #??????#???????##########???# #???????? | | #??????????????????????????? ##???????? | | #??????????????????????????# ##????????? | | #??#???????????????????????# #?????????? | | ##????#??????????#??????????# #?????????? | | ###?#????????????????#???###??# ?????????? | | ????#??????????????????## ##?# ?????????? | | ???????#??###????####### #?## ##????????? | | ??#??#?#### ##??# ## #???###?????????? | | #??#???## #??# #???????????????? | | ##?????# #??# #???????????????? | | ###???# #### #???????????????? | | #????# ## #???????????????? | | #??????# ##???????????????? | | ###?#?#?## %! ####?????????#??????? | | ##?#??##??## #####????????????????? | | #??#####???## ## #????????????????? | | #?## ##???## ### #????????????????? | | ?## ##???# #?## #### #???#????????????? | | ## #???# ##?####????#????????????????? | | # ##### #????#??????????????????????? | +----------------------------------------------------+ Best States ------------- Heat Dissipation 28 Energy Generation 17 Energy Capacity 290 Matter Stores 300 Matter Capacity 300 Sight Range 18 Terrain Scan Range 14 Terrain Scan Density 60 Armor Coverage 150 Resistance: KI 35 Resistance: TH 35 Resistance: EX 35 Resistance: EM 35 Resistance: I 35 Resistance: S 35 Resistance: P 35 Propulsion Shielding 33 Evasion (%) 50 Targeting Accuracy 5 Offensive Hacking 20 Item Schematics ----------------- None Robot Schematics ------------------ None Fabricated ------------ Nothing Alien Tech Used ----------------- None Achievements -------------- Crack Shot First Step to Greatness One Hack Too Far Tourist Challenges ------------ None Game ------ Seed DirtyThrusterElectrolaser Manual? 0 Play Time 01:27:01 Cumulative 0.0 hours Start 2021.10.27 @ 22:35:04 End 2021.10.28 @ 15:20:20 Sessions 5 Manual Loads 0 Difficulty Explorer Special Mode None Game No. 1 Rogue 0 Adventurer 0 Explorer 1 Win Type - Total 0 Types 0/0/0/0/0/0/0/0/0 Lore% 1 Gallery% 2 Achievement% 1 Wizard Run 0 Options --------- ASCII 1 Keyboard 0 Movement Mouse Keybinds 0 Fullscreen 1 Font 12/Smallcaps Map View 76x56 Tactical HUD 1 Map Filters NONE Filters NONE Steam X RUN: 452b21cf-44a3-4f2f-a167-b15ca8e0cd7b